Workbook

Sheet Truss
B1: NOTES: | C1: Yellow cells: input; White cells: output | G1: WARNING - THIS WORKSHEET IS NOT LOCKED
C2: Do not skip lines when entering joints or members | G2: Make changes at your own risk
B5: JOINTS | E5: FORCES | G5: DISPLACEMENTS | I5: OUTPUT
C6: x | D6: y | E6: Fx | F6: Fy | G6: BC: δx | H6: BC: δy | I6: dx | J6: dy | K6: Fx | L6: Fy
B7: A | C7: -90 | D7: 0 | G7: 0 | H7: 0 | I7: 0 | J7: 0 | K7: 1.309672371e-10 | L7: 7500
B8: B | C8: 0 | D8: 12 | F8: -15000 | I8: 0.1326063718 | J8: -3.401074749
B9: C | C9: 90 | D9: 0 | H9: 0 | I9: 0.5300629788 | J9: 0 | L9: 7500
B10: D | C10: 0 | D10: 0 | I10: 0.2900893601 | J10: -3.401074749
B11: E | C11: 50 | D11: 0 | I11: 0.312039723 | J11: -2.653435786
B12: F | C12: -50 | D12: 0 | I12: 0.01756029033 | J12: -2.921716076
B13: G
B14: H
B15: I
B16: J
B17: K
B18: L
B19: M
B20: N
B21: O
B22: P
B23: Q
B24: R
B25: S
B26: T
B27: U
B28: V
B29: W
B30: X
B31: Y
B32: Z | N32: 2.1 | O32: Target Factor of Safety | Q32: Black = Pass | S32: (Truss graphing - Brian Neumeyer, Summer 2015)
Q33: Red = Fail, yielding
Q34: Blue = Fail, buckling
B35: MEMBERS | H35: =SUM(H37:H86) -> 234.4544238 | I35: TOTAL WEIGHT | Q35: Orange = Fail both
B36: Joint 1 | C36: Joint 2 | D36: Matl ID | E36: Sect ID | F36: Force | G36: Length | H36: Weight | I36: Stress | J36: FS-Yield | K36: FS-Buckling | M36: MATERIALS
A37: 1 | B37: A | C37: B | D37: 1 | E37: 3 | F37: -56747.79731 | G37: 90.7964757 | H37: 13.38491379 | I37: -105088.5135 | J37: 0.42 | K37: 0.08 E | M37: ID | N37: E | O37: Sy
A38: =A37+1 -> 2 | B38: B | C38: C | D38: 1 | E38: 10 | F38: -56747.79731 | G38: 90.7964757 | H38: 79.52257997 | I38: -18347.17016 | J38: 2.4 | K38: 1.56 J | M38: 1 | N38: 30000000 | O38: 44000
A39: =A38+1 -> 3 | B39: A | C39: F | D39: 1 | E39: 12 | F39: 56250 | G39: 40 | H39: 48.4 | I39: 13170.21775 | J39: 3.34 | M39: 2
A40: 4 | B40: D | C40: E | D40: 1 | E40: 12 | F40: 56250 | G40: 50 | H40: 60.5 | I40: 13170.21775 | J40: 3.34 | M40: 3
A41: 5 | B41: B | C41: D | D41: 1 | E41: 12 | F41: 4.741762538e-09 | G41: 12 | H41: 14.52 | I41: 1.110223025e-09 | J41: >100 | M41: 4
A42: 6 | B42: B | C42: F | D42: 1 | E42: 1 | F42: 4.506732859e-11 | G42: 51.41984053 | H42: 4.83346501 | I42: 1.310096761e-10 | J42: >100 | M42: 5
A43: 7 | B43: E | C43: B | D43: 1 | E43: 1 | F43: 0 | G43: 51.41984053 | H43: 4.83346501 | I43: 0 | J43: >100
A44: 8 | B44: F | C44: D | D44: 1 | E44: 1 | F44: 56250 | G44: 50 | H44: 4.7 | I44: 163517.4419 | J44: 0.27 | M44: SECTIONS
A45: 9 | B45: E | C45: C | D45: 1 | E45: 1 | F45: 56250 | G45: 40 | H45: 3.76 | I45: 163517.4419 | J45: 0.27 | M45: ID | N45: Label | O45: Area | P45: Rgyr | Q45: Uwgt
A46: 10 | M46: 1 | N46: 1x1/8 | O46: 0.344 | P46: 0.313 | Q46: =1.128/12 -> 0.094
A47: 11 | M47: 2 | N47: 1x1/4 | O47: 0.589 | P47: 0.28 | Q47: =2.003/12 -> 0.1669166667
A48: 12 | M48: 3 | N48: 1-1/2x1/8 | O48: 0.54 | P48: 0.488 | Q48: =1.769/12 -> 0.1474166667
A49: 13 | M49: 4 | N49: 1-1/2x1/4 | O49: 0.982 | P49: 0.451 | Q49: =3.338/12 -> 0.2781666667
A50: 14 | M50: 5 | N50: 2x1/8 | O50: 0.736 | P50: 0.664 | Q50: =2.67/12 -> 0.2225
A51: 15 | M51: 6 | N51: 2x1/4 | O51: 1.374 | P51: 0.625 | Q51: =4.673/12 -> 0.3894166667
A52: 16 | M52: 7 | N52: 2-1/2x1/8 | O52: 0.933 | P52: 0.841 | Q52: =3.05/12 -> 0.2541666667
A53: 17 | M53: 8 | N53: 2-1/2x1/4 | O53: 1.767 | P53: 0.8 | Q53: =6.008/12 -> 0.5006666667
A54: 18 | M54: 9 | N54: 3x1/4 | O54: 2.16 | P54: 0.976 | Q54: =7.343/12 -> 0.6119166667
A55: 19 | M55: 10 | N55: 3x3/8 | O55: 3.093 | P55: 0.938 | Q55: =10.51/12 -> 0.8758333333
A56: 20 | M56: 11 | N56: 4x3/16 | O56: 2.246 | P56: 1.35 | Q56: =7.654/12 -> 0.6378333333
A57: 21 | M57: 12 | N57: 4x3/8 | O57: 4.271 | P57: 1.289 | Q57: =14.52/12 -> 1.21
A58: 22
A59: 23
A60: 24
A61: 25
A62: 26
A63: 27
A64: 28
A65: 29
A66: 30
A67: 31
A68: 32
A69: 33
A70: 34
A71: 35
A72: 36
A73: 37
A74: 38
A75: 39
A76: 40
A77: 41
A78: 42
A79: 43
A80: 44
A81: 45
A82: 46
A83: 47
A84: 48
A85: 49
A86: 50
B89: Worksheet password is "TrussLock" - make chages at your own risk.

Sheet Sheet2

Sheet Sheet3
